bitfinex-derivatives/quotes_SOLF0:USTF0_20260210
["timestamp","ask_amount","ask_price","bid_price","bid_amount"]
[1770766412058,3.73113529,82.86,82.833,16.91042309]
[1770766412260,3.73113529,82.86,82.808,321.21883885]
[1770766412261,10.8678,82.859,82.822,10.8726]
[1770766412562,3.73113529,82.84,82.821,6.03932309]
[1770766413757,3.73113529,82.84,82.821,16.91202309]
[1770766417363,3.73113529,82.84,82.821,6.03932309]
[1770766417961,3.73113529,82.84,82.815,10.8735]
[1770766419458,3.73113529,82.83,82.771,6.22018346]
[1770766419658,3.73113529,82.81,82.771,6.22018346]
[1770766420062,3.73113529,82.8,82.772,10.8791]
[1770766424760,3.73113529,82.8,82.76,17.09932139]
[1770766424971,3.73113529,82.82,82.761,6.21872139]
[1770766425169,3.73113529,82.83,82.781,6.21872139]
[1770766425366,465.27518809,82.849,82.781,6.21872139]
[1770766425367,3.73113529,82.84,82.781,6.21872139]
[1770766425563,3.73113529,82.84,82.799,6.21872139]
[1770766426574,3.73113529,82.84,82.806,10.8746]
[1770766429366,3.73113529,82.84,82.807,6.174116]
[1770766434772,476.14428809,82.849,82.793,6.17178485]
[1770766434773,3.73113529,82.82,82.793,6.17178485]
[1770766435371,3.73531049,82.82,82.793,6.17178485]
[1770766439278,3.73531049,82.82,82.782,17.06561485]
[1770766440384,3.73531049,82.81,82.761,6.18781485]
[1770766441577,3.73531049,82.8,82.757,6.18500715]
[1770766441781,3.73531049,82.78,82.731,6.18500715]
[1770766441982,3.73531049,82.77,82.731,6.18500715]
[1770766442479,3.73531049,82.76,82.731,6.18500715]
[1770766442676,3.73531049,82.75,82.702,6.18500715]
[1770766443185,3.73531049,82.74,82.709,6.17496253]
[1770766444471,3.73531049,82.74,82.636,22.57287334]
[1770766444472,3.73531049,82.73,82.697,6.17496253]
[1770766444678,21.7522,82.796,82.697,6.17496253]
[1770766444679,3.73531049,82.75,82.697,6.17496253]
[1770766444874,3.73531049,82.76,82.711,6.17106948]
[1770766445279,3.73531049,82.75,82.719,6.17106948]
[1770766447482,3.73531049,82.74,82.703,6.1343461]
[1770766447876,8.62799443,82.787,82.706,6.1343461]
[1770766448082,3.73531049,82.77,82.711,6.1343461]
[1770766448487,3.73531049,82.76,82.724,6.1343461]
[1770766449492,3.73531049,82.76,82.725,10.8852]
[1770766449779,3.73531049,82.76,82.726,6.12156756]
[1770766450182,14.61481049,82.77,82.726,6.12156756]
[1770766454791,3.73531049,82.76,82.726,6.12156756]
[1770766458591,3.73531049,82.77,82.726,6.12156756]
[1770766458984,3.74080204,82.77,82.726,6.12156756]
[1770766459685,3.74080204,82.77,82.729,16.96086242]
[1770766460092,3.74080204,82.77,82.73,6.07606242]
[1770766460292,10.8797,82.768,82.73,6.07606242]
[1770766461891,10.8797,82.768,82.731,10.8845]
[1770766462086,96.44,82.796,82.69,118.2197]
[1770766462087,3.74080204,82.78,82.732,6.05178823]
[1770766463799,3.74080204,82.78,82.747,10.8824]
[1770766465595,3.74080204,82.78,82.748,6.0338769]
[1770766465790,3.74080204,82.79,82.751,6.0338769]
[1770766466594,3.74080204,82.79,82.755,10.8814]
[1770766470299,3.74080204,82.79,82.755,16.9161138]
[1770766471504,3.74080204,82.78,82.746,10.8825]
[1770766471896,3.74080204,82.78,82.747,6.04541337]
[1770766472096,14.61890204,82.78,82.747,6.04541337]
[1770766472298,3.74080204,82.78,82.747,6.04541337]
[1770766473297,8.64514848,82.811,82.73,3.74080204]
[1770766473298,10.8773,82.787,82.749,6.05582563]
[1770766473502,3.74080204,82.78,82.749,6.05582563]
[1770766473802,3.74080204,82.8,82.764,4.18542461]
[1770766474100,3.74080204,82.79,82.764,4.18542461]
[1770766474301,3.74080204,82.79,82.731,4.18542461]
[1770766475800,3.74080204,82.79,82.753,15.06482657]
[1770766477207,3.74080204,82.81,82.761,4.19661123]
[1770766477604,3.74080204,82.8,82.761,4.19661123]
[1770766478700,3.74080204,82.81,82.769,4.19661123]
[1770766479701,3.74080204,82.81,82.773,10.8789]
[1770766480899,3.74080204,82.81,82.777,10.8784]
[1770766481210,3.74080204,82.81,82.774,4.31828255]
[1770766481400,3.74080204,82.8,82.774,4.31828255]
[1770766481606,3.74080204,82.79,82.752,4.31828255]
[1770766482109,3.74080204,82.8,82.752,4.31828255]
[1770766482310,3.74080204,82.79,82.752,4.31828255]
[1770766482705,3.74080204,82.79,82.762,10.8805]
[1770766482905,3.74080204,82.79,82.752,4.31828255]
[1770766483309,10.877,82.789,82.752,15.19998255]
[1770766484310,10.877,82.789,82.753,4.3219803]
[1770766491922,3.74080204,82.78,82.753,4.3219803]
[1770766494320,10.877,82.789,82.753,4.3219803]
[1770766497333,3.74080204,82.79,82.755,4.31983692]
[1770766498925,3.74080204,82.79,82.756,10.8812]
[1770766499130,14.61770204,82.79,82.756,10.8812]
[1770766499325,14.61770204,82.79,82.755,4.31983692]
[1770766500823,10.8777,82.784,82.755,4.31983692]
[1770766501825,14.61760204,82.79,82.755,4.31983692]
[1770766502631,10.8768,82.79,82.757,4.29101386]
[1770766502927,10.8755,82.801,82.757,4.29101386]
[1770766503231,3.74080204,82.82,82.771,4.28696104]
[1770766503625,10.8728,82.821,82.771,4.28696104]
[1770766503821,3.74080204,82.83,82.784,4.28696104]
[1770766504023,10.8709,82.835,82.791,4.28696104]
[1770766504220,8.66682621,82.848,82.791,4.28696104]
[1770766504427,3.74080204,82.85,82.791,4.28696104]
[1770766504822,10.8697,82.845,82.8,4.28696104]
[1770766505022,3.74080204,82.84,82.8,4.28696104]
[1770766505336,3.74080204,82.85,82.801,4.26442142]
[1770766505534,10.8693,82.848,82.802,4.26442142]
[1770766506532,3.74080204,82.84,82.804,4.26442142]
[1770766508531,3.74080204,82.84,82.807,4.24540317]
[1770766509723,3.74080204,82.83,82.798,10.8757]
[1770766510526,3.74080204,82.82,82.788,10.877]
[1770766511029,3.74080204,82.83,82.788,15.15726539]
[1770766511638,3.74080204,82.83,82.79,10.8768]
[1770766511836,3.74080204,82.82,82.79,10.8768]
[1770766512135,10.871,82.834,82.793,10.8764]
[1770766512335,3.74080204,82.83,82.794,4.28026539]
[1770766512730,3.74080204,82.82,82.794,4.28026539]
[1770766513532,3.74080204,82.83,82.794,4.28026539]
[1770766515832,3.74080204,82.82,82.794,4.28026539]
[1770766516033,10.8718,82.829,82.794,4.28026539]
[1770766516235,3.74080204,82.83,82.794,4.28026539]
[1770766516438,3.74080204,82.82,82.794,4.28026539]
[1770766516737,3.74080204,82.82,82.78,4.34122241]
[1770766519040,3.74080204,82.82,82.784,4.38029934]
[1770766520836,3.73548031,82.82,82.784,4.38029934]
[1770766521639,10.8723,82.825,82.784,4.38029934]
[1770766524839,3.73548031,82.83,82.792,4.36783094]
[1770766525738,3.73548031,82.83,82.794,4.40130231]
[1770766526139,10.8714,82.832,82.794,4.40130231]
[1770766526444,3.73548031,82.84,82.797,4.40130231]
[1770766526839,465.27518809,82.849,82.797,4.40130231]
[1770766527547,3.73548031,82.84,82.797,4.40130231]
[1770766527746,3.73548031,82.84,82.808,4.40340112]
[1770766533942,3.73548031,82.83,82.796,4.51390908]
[1770766534141,3.73548031,82.84,82.796,4.51390908]
[1770766534648,3.73548031,82.84,82.799,4.51390908]
[1770766535145,10.8704,82.839,82.804,10.8749]
[1770766535651,3.73548031,82.84,82.804,10.8749]
[1770766536840,3.73548031,82.83,82.804,10.8749]
[1770766540945,3.73548031,82.84,82.809,10.8742]
[1770766542056,3.73548031,82.84,82.809,15.44964653]
[1770766543352,3.73548031,82.83,82.809,4.57544653]
[1770766549151,10.8701,82.842,82.809,4.57544653]
[1770766549152,3.73548031,82.84,82.809,4.57544653]
[1770766551157,3.73548031,82.84,82.81,4.55845973]
[1770766555658,3.73415305,82.84,82.81,4.55845973]
[1770766560559,3.73415305,82.84,82.812,4.61279117]
[1770766560760,3.73415305,82.85,82.812,4.61279117]
[1770766561849,3.73415305,82.85,82.82,4.61251474]
[1770766575382,3.73415305,82.84,82.82,4.61251474]
[1770766575876,3.73415305,82.84,82.819,10.8729]
[1770766576374,3.73415305,82.85,82.822,4.60947146]
[1770766577667,3.73415305,82.85,82.823,10.8725]
[1770766578964,3.73415305,82.85,82.822,4.60947146]
[1770766579370,3.73415305,82.85,82.814,10.8735]
[1770766579570,3.73415305,82.85,82.816,10.8733]
[1770766579875,3.73415305,82.85,82.816,15.52590465]
[1770766582880,3.73319546,82.85,82.816,15.52590465]
[1770766583978,3.73319546,82.85,82.819,10.8729]
[1770766585178,3.73319546,82.85,82.819,15.52734035]
[1770766585379,3.73319546,82.85,82.824,4.65444035]
[1770766589183,3.73319546,82.83,82.807,10.8745]
[1770766591482,3.73319546,82.82,82.778,4.73845882]
[1770766591675,3.73319546,82.8,82.762,4.73845882]
[1770766592685,3.73319546,82.8,82.773,10.879]
[1770766595887,3.73319546,82.8,82.774,4.71796273]
[1770766596082,36.26,82.85,82.728,111.42]
[1770766596083,3.73319546,82.79,82.741,4.71796273]
[1770766596579,3.73319546,82.76,82.741,4.71796273]
[1770766606200,3.73319546,82.75,82.723,4.6893792]
[1770766607802,3.73319546,82.75,82.727,4.6261126]
[1770766608804,3.73319546,82.75,82.729,4.6261126]
[1770766609699,3.73319546,82.76,82.729,4.6261126]
[1770766610405,3.73319546,82.77,82.732,4.62950943]
[1770766611401,3.73319546,82.77,82.742,4.62926613]
[1770766617917,10.8782,82.78,82.742,4.62926613]
[1770766618108,3.73319546,82.77,82.742,4.62926613]
[1770766618513,3.73319546,82.77,82.747,4.58262364]
[1770766618709,3.73319546,82.78,82.747,4.58262364]
[1770766619914,3.73319546,82.79,82.755,4.58441703]
[1770766620922,3.73319546,82.79,82.763,4.58441703]
[1770766621213,3.73319546,82.81,82.763,4.58441703]
[1770766621411,3.73319546,82.81,82.772,4.58242133]
[1770766621611,3.73319546,82.8,82.772,4.58242133]
[1770766621807,3.73319546,82.79,82.741,4.58242133]
[1770766622214,96.44,82.815,82.759,4.58242133]
[1770766622215,3.73319546,82.8,82.759,4.58242133]
[1770766622414,3.73319546,82.81,82.759,4.58242133]
[1770766623813,3.73319546,82.81,82.776,4.57736377]
[1770766624616,3.73319546,82.81,82.778,4.57736377]
[1770766627117,3.73319546,82.81,82.781,4.5141152]
[1770766628416,36.26,82.854,82.781,4.5141152]
[1770766628721,11.1828344,82.872,82.677,508.2754]
[1770766628722,3.73319546,82.83,82.8,4.5141152]
[1770766633918,3.73319546,82.82,82.8,4.5141152]
[1770766634631,3.73319546,82.83,82.803,10.8751]
[1770766638221,3.73319546,82.82,82.794,10.8762]
[1770766638925,3.73319546,82.82,82.794,15.41629126]
[1770766641029,3.73319546,82.82,82.795,4.56346887]
[1770766641629,3.73319546,82.83,82.795,4.56346887]
[1770766643027,3.73494706,82.83,82.795,4.56346887]
[1770766643731,3.73494706,82.82,82.795,4.56346887]
[1770766650938,425.2,82.86,82.798,4.56533713]
[1770766650939,3.73494706,82.83,82.798,4.56533713]
[1770766651838,3.73494706,82.83,82.801,4.56467204]
[1770766652335,10.8708,82.836,82.801,4.56467204]
[1770766652732,10.8708,82.836,82.804,4.56467204]
[1770766654941,10.8695,82.846,82.809,4.54995061]
[1770766655137,3.73494706,82.86,82.809,4.54995061]
[1770766655445,3.73494706,82.85,82.809,4.54995061]
[1770766656739,10.8692,82.848,82.811,4.54995061]
[1770766657734,10.8692,82.848,82.813,10.8737]
[1770766659346,3.73494706,82.85,82.816,4.475908]
[1770766661239,3.73494706,82.85,82.804,4.45723633]
[1770766661440,3.73494706,82.84,82.803,10.8751]
[1770766664249,3.73494706,82.84,82.806,4.4246483]
[1770766673354,3.7342417,82.84,82.806,4.4246483]
[1770766673757,3.7342417,82.84,82.808,4.41882673]
[1770766675659,3.7342417,82.85,82.816,4.33915897]
[1770766676056,3.7342417,82.85,82.817,10.8732]
[1770766676252,10.8687,82.852,82.818,4.33915897]
[1770766676558,10.8692,82.849,82.818,4.33915897]
[1770766680668,3.7342417,82.84,82.818,4.33915897]
[1770766682068,10.8692,82.849,82.818,4.33915897]
[1770766682666,3.7342417,82.85,82.818,4.33915897]
[1770766683770,14.6032417,82.85,82.818,4.33915897]
[1770766684182,14.6032417,82.85,82.809,10.8742]
[1770766684381,14.6032417,82.85,82.81,4.35638822]
[1770766684880,14.6032417,82.85,82.817,15.24072274]
[1770766685069,14.6032417,82.85,82.818,4.36752274]
[1770766688478,3.7342417,82.85,82.82,4.3505762]
[1770766691486,10.8689,82.851,82.82,4.3505762]
[1770766692389,3.7342417,82.85,82.82,4.3505762]
[1770766697786,3.7342417,82.86,82.829,4.31604929]
[1770766697990,3.7342417,82.87,82.829,4.31604929]
[1770766698180,469.33028455,82.871,82.829,4.31604929]
[1770766698385,469.33028455,82.871,82.831,4.31604929]
[1770766699192,3.7342417,82.88,82.831,4.31604929]
[1770766699891,3.7342417,82.88,82.849,4.33276836]
[1770766701292,3.7342417,82.87,82.849,4.33276836]
[1770766704898,3.73069209,82.87,82.849,4.33276836]
[1770766705899,3.73069209,82.87,82.846,10.8694]
[1770766706095,3.73069209,82.88,82.85,4.33592314]
[1770766706598,3.73069209,82.88,82.852,4.33592314]
[1770766707690,3.73069209,82.88,82.853,15.19506899]
[1770766708292,3.73069209,82.88,82.854,4.32656899]
[1770766709990,36.26,82.917,82.875,4.28499005]
[1770766710193,3.73069209,82.91,82.875,4.28499005]
[1770766710392,3.73069209,82.92,82.875,4.28499005]
[1770766710596,3.73069209,82.91,82.875,4.28499005]
[1770766710993,3.73069209,82.91,82.879,4.27014053]
[1770766711197,3.73069209,82.92,82.879,4.27014053]
[1770766712803,3.73069209,82.92,82.881,4.27014053]
[1770766713697,3.73069209,82.92,82.883,4.2760125]
[1770766714700,3.73069209,82.92,82.886,4.2760125]
[1770766715405,3.73069209,82.92,82.888,4.36038713]
[1770766716006,3.73069209,82.93,82.899,4.36038713]
[1770766719695,3.73069209,82.92,82.889,4.38570544]
[1770766719901,3.73069209,82.91,82.879,4.38570544]
[1770766720098,3.73069209,82.91,82.851,4.38570544]
[1770766720899,3.73069209,82.91,82.872,10.866]
[1770766721106,3.73069209,82.91,82.872,15.26681571]
[1770766721502,3.73069209,82.91,82.874,10.8657]
[1770766723909,3.73069209,82.91,82.874,15.28020096]
[1770766725508,3.73069209,82.9,82.874,15.28020096]
[1770766725803,3.73069209,82.91,82.878,4.40100818]
[1770766727609,3.73069209,82.91,82.879,4.38493937]
[1770766728698,21.7119,82.95,82.842,96.3]
[1770766728699,10.859,82.926,82.887,4.38493937]
[1770766729211,10.8573,82.939,82.899,4.41414777]
[1770766729406,3.73069209,82.94,82.899,4.41414777]
[1770766730110,10.8575,82.938,82.899,4.41414777]
[1770766731710,10.8575,82.938,82.901,4.39377032]
[1770766732708,10.8583,82.932,82.894,4.39377032]
[1770766732920,3.73069209,82.93,82.894,4.39377032]
[1770766733111,3.73069209,82.92,82.894,4.39377032]
[1770766735112,10.8587,82.929,82.894,4.39377032]
[1770766735415,3.73069209,82.93,82.895,10.8629]
[1770766735605,3.73069209,82.93,82.894,4.39377032]
[1770766735801,3.73069209,82.92,82.871,4.41280217]
[1770766736808,3.73069209,82.92,82.883,10.8645]
[1770766737699,3.73069209,82.91,82.883,10.8645]
[1770766737906,3.73069209,82.92,82.885,15.26716838]
[1770766739412,3.73069209,82.92,82.886,4.41440096]
[1770766740614,10.8593,82.924,82.886,4.41440096]
[1770766740813,3.73069209,82.92,82.886,4.41440096]
[1770766741717,3.73069209,82.91,82.875,4.42185256]
[1770766742519,3.73069209,82.91,82.878,10.8652]
[1770766745208,10.8613,82.909,82.875,4.42185256]
[1770766745418,3.73069209,82.89,82.852,4.36015099]
[1770766746107,14.97712435,82.937,82.824,96.28]
[1770766746108,3.73069209,82.9,82.863,4.36015099]
[1770766747724,3.73069209,82.9,82.865,4.3307935]
[1770766748825,3.73069209,82.89,82.865,4.3307935]
[1770766749328,3.73069209,82.91,82.865,4.3307935]
[1770766749720,10.8614,82.908,82.867,4.30544952]
[1770766749919,3.73069209,82.9,82.867,4.30544952]
[1770766752025,10.8625,82.899,82.859,10.8677]
[1770766752221,10.8625,82.899,82.859,15.17588003]
[1770766752422,10.8625,82.899,82.86,4.30818003]
[1770766753423,3.73069209,82.9,82.863,10.8672]
[1770766754023,3.73069209,82.88,82.834,4.29202099]
[1770766754329,3.73069209,82.87,82.834,4.29202099]
[1770766755123,3.73069209,82.86,82.834,4.29202099]
[1770766755521,3.73069209,82.86,82.806,4.27905768]
[1770766755726,3.73069209,82.84,82.806,4.27905768]
[1770766757331,3.73069209,82.83,82.806,4.27905768]
[1770766757920,10.8701,82.842,82.806,4.27905768]
[1770766757921,3.73069209,82.84,82.806,4.27905768]
[1770766758125,3.73069209,82.86,82.811,4.28009596]
[1770766758627,3.73069209,82.86,82.822,4.28009596]
[1770766758824,3.73069209,82.85,82.822,4.28009596]
[1770766759025,3.73069209,82.85,82.791,4.24681082]
[1770766759428,3.73069209,82.84,82.797,4.24681082]
[1770766760734,3.73069209,82.84,82.801,4.24681082]
[1770766761932,3.73069209,82.84,82.806,4.25679933]
[1770766763729,3.73069209,82.84,82.81,10.8741]
[1770766764029,47.49205771,82.89,82.811,4.28196934]
[1770766764030,3.73069209,82.85,82.811,4.28196934]
[1770766764735,3.73069209,82.85,82.815,4.28196934]
[1770766764929,10.8681,82.857,82.815,4.28196934]
[1770766765332,3.73069209,82.85,82.815,4.28196934]
[1770766766926,3.733211,82.85,82.815,4.28196934]
[1770766770231,96.32,82.871,82.815,4.28196934]
[1770766770437,3.733211,82.85,82.815,4.28196934]
[1770766770731,3.733211,82.85,82.821,4.27497898]
[1770766770926,3.733211,82.86,82.821,4.27497898]
[1770766771635,3.733211,82.85,82.821,4.27497898]
[1770766772222,3.733211,82.85,82.811,15.14864988]
[1770766772728,3.733211,82.85,82.812,4.27464988]
[1770766775737,3.733211,82.85,82.8,3.733211]
[1770766775738,3.733211,82.85,82.815,4.29402381]
[1770766775926,10.8686,82.853,82.815,4.29402381]
[1770766781332,10.8675,82.862,82.824,4.29469813]
[1770766781831,96.34,82.884,82.812,4.29469813]
[1770766782037,3.733211,82.85,82.812,4.29469813]
[1770766783739,10.8693,82.848,82.814,4.31720358]
[1770766787135,3.733211,82.85,82.814,4.31720358]
[1770766787336,10.8683,82.855,82.814,4.31720358]
[1770766788749,10.8683,82.855,82.816,4.3127486]
[1770766789846,10.8675,82.861,82.823,4.29978988]
[1770766790137,3.733211,82.86,82.823,4.29978988]
[1770766790746,3.733211,82.85,82.819,4.29978988]
[1770766791333,3.733211,82.85,82.794,96.36]
[1770766791334,3.733211,82.85,82.81,10.8741]
[1770766791538,3.733211,82.84,82.807,4.29436498]
[1770766793353,3.73358976,82.85,82.807,4.29436498]
[1770766794745,96.36,82.878,82.774,107.24]
[1770766794746,3.73358976,82.86,82.816,4.30447118]
[1770766795241,3.73358976,82.87,82.816,4.30447118]
[1770766795437,3.73358976,82.87,82.81,3.73358976]
[1770766795438,10.8671,82.864,82.828,4.29661953]
[1770766796145,3.73358976,82.86,82.828,4.29661953]
[1770766796849,3.73358976,82.86,82.829,15.16821953]
[1770766797041,3.73358976,82.86,82.83,4.29048417]
[1770766800146,10.8685,82.854,82.819,4.29134684]
[1770766800455,10.8685,82.854,82.815,10.8734]
[1770766800456,3.73358976,82.85,82.815,10.8734]
[1770766800744,3.73358976,82.84,82.807,4.29134684]
[1770766801344,3.73358976,82.83,82.795,10.8761]
[1770766801850,3.73358976,82.83,82.796,4.31570256]
[1770766803152,3.73358976,82.83,82.798,10.8757]
[1770766803455,3.73358976,82.83,82.799,4.24024416]
[1770766803752,10.871,82.835,82.799,4.24024416]
[1770766806555,10.871,82.835,82.798,10.8757]
[1770766806556,3.73358976,82.84,82.805,4.21451677]
[1770766807753,3.73358976,82.84,82.807,10.8745]
[1770766808054,14.60388976,82.84,82.805,4.21451677]
[1770766808557,3.73358976,82.84,82.805,4.21451677]
[1770766810260,3.73358976,82.84,82.806,10.8746]
[1770766811150,3.73358976,82.83,82.798,4.21755841]
[1770766811950,3.73358976,82.84,82.807,4.21755841]
[1770766816469,3.73358976,82.84,82.809,4.21211936]
[1770766816665,3.73358976,82.83,82.804,4.21211936]
[1770766817873,3.73358976,82.83,82.804,15.08691936]
[1770766818574,3.73358976,82.84,82.804,4.21211936]
[1770766819769,3.73358976,82.84,82.805,10.8748]
[1770766823369,3.73358976,82.84,82.805,15.14964813]
[1770766823576,3.73358976,82.83,82.805,4.27484813]
[1770766824069,14.60388976,82.84,82.805,4.27484813]
[1770766824669,14.60388976,82.84,82.799,10.8756]
[1770766824670,10.8713,82.832,82.799,10.8756]
[1770766824869,3.73358976,82.83,82.799,10.8756]
[1770766827274,3.73358976,82.82,82.795,4.27484813]
[1770766827474,3.73358976,82.82,82.771,4.28856541]
[1770766828680,10.8732,82.818,82.78,4.28856541]
[1770766828883,3.73652006,82.81,82.78,4.28856541]
[1770766829373,3.73652006,82.81,82.783,10.8777]
[1770766831674,3.73652006,82.83,82.788,4.30154822]
[1770766832278,3.73652006,82.83,82.796,4.30154822]
[1770766835480,3.73652006,82.83,82.798,4.27353542]
[1770766835685,3.73652006,82.84,82.798,4.27353542]
[1770766836282,3.73652006,82.82,82.798,4.27353542]
[1770766838189,14.60812006,82.83,82.798,4.27353542]
[1770766838988,10.8724,82.824,82.788,4.28211341]
[1770766839182,3.73652006,82.82,82.788,4.28211341]
[1770766839382,14.91755446,82.861,82.77,326.0872944]
[1770766839383,3.73652006,82.81,82.781,10.8779]
[1770766841090,3.73652006,82.8,82.773,10.879]
[1770766841582,3.73652006,82.81,82.773,10.879]
[1770766841985,3.73652006,82.8,82.773,10.879]
[1770766842594,3.73652006,82.81,82.773,10.879]
[1770766842794,10.8753,82.802,82.771,4.28211341]
[1770766843583,10.8757,82.799,82.762,10.8805]
[1770766843788,10.8757,82.799,82.763,4.2592632]
[1770766846495,3.73652006,82.8,82.765,4.27463258]
[1770766846795,3.73652006,82.82,82.765,4.27463258]
[1770766847593,3.73652006,82.81,82.765,4.27463258]
[1770766847794,96.4,82.842,82.772,4.26335679]
[1770766847988,3.73652006,82.82,82.772,4.26335679]
[1770766848189,3.73652006,82.8,82.752,4.26335679]
[1770766848696,10.8758,82.798,82.761,10.8806]
[1770766848896,10.8758,82.798,82.762,4.26335679]
[1770766849796,10.8758,82.798,82.765,4.27171992]
[1770766849999,96.4,82.831,82.742,4.27190197]
[1770766850000,10.877,82.789,82.742,4.27190197]
[1770766850308,3.73652006,82.78,82.742,4.27190197]
[1770766851799,10.8785,82.778,82.742,4.27190197]
[1770766855306,3.73652006,82.78,82.744,4.33654843]
[1770766856405,10.8785,82.778,82.744,4.33654843]
[1770766857208,2.99185875,82.79,82.739,4.3302217]
[1770766857696,2.99185875,82.79,82.741,4.3302217]
[1770766858706,2.99185875,82.79,82.749,4.3302217]
[1770766861106,10.8771,82.789,82.749,4.3302217]
[1770766861306,10.8771,82.789,82.75,10.8819]
[1770766861509,10.8771,82.789,82.751,4.32607375]
[1770766866216,10.8771,82.789,82.753,4.33984312]
[1770766866619,10.8752,82.803,82.753,4.33984312]
[1770766866813,2.99185875,82.81,82.773,4.33984312]
[1770766867508,2.99185875,82.82,82.782,4.34017014]
[1770766868921,2.99185875,82.82,82.784,4.34017014]
[1770766870721,2.99185875,82.82,82.786,4.32462385]
[1770766872419,2.99185875,82.8,82.746,4.32055328]
[1770766872618,2.99185875,82.79,82.746,4.32055328]
[1770766873817,10.877,82.789,82.748,10.8823]
[1770766874221,2.99185875,82.78,82.748,10.8823]
[1770766874815,10.8783,82.779,82.741,10.8832]
[1770766876322,2.99185875,82.81,82.761,4.37435825]
[1770766876521,2.99185875,82.81,82.771,4.37435825]
[1770766877720,2.99185875,82.81,82.776,10.8786]
[1770766882432,2.99185875,82.81,82.771,4.37435825]
[1770766883735,2.99185875,82.81,82.773,4.34786161]
[1770766884030,2.99185875,82.82,82.773,4.34786161]
[1770766884230,2.99185875,82.82,82.784,4.34786161]
[1770766884429,2.99185875,82.83,82.784,4.34786161]
[1770766884630,2.99185875,82.82,82.784,4.34786161]
[1770766885831,2.99185875,82.82,82.788,4.37050486]
[1770766887133,2.99185875,82.82,82.792,15.24917938]
[1770766887335,2.99185875,82.83,82.793,4.37267938]
[1770766887531,2.99185875,82.84,82.793,4.37267938]
[1770766888736,2.99185875,82.84,82.807,4.37267938]
[1770766891040,2.98704275,82.84,82.807,4.37267938]
[1770766896449,2.98704275,82.83,82.799,10.8755]
[1770766897144,10.8704,82.839,82.799,10.8755]
[1770766897940,2.98704275,82.83,82.79,10.8768]
[1770766898739,10.8718,82.829,82.79,10.8768]
[1770766899135,2.98704275,82.82,82.79,10.8768]
[1770766901248,10.8718,82.829,82.793,4.37236808]
[1770766902046,10.8701,82.842,82.793,4.37236808]
[1770766902238,2.98704275,82.82,82.793,4.37236808]
[1770766902440,2.98704275,82.82,82.781,4.37236808]
[1770766903953,10.873,82.819,82.781,4.37236808]
[1770766904448,10.873,82.819,82.782,4.33633526]
[1770766907251,2.98704275,82.81,82.776,4.29013928]
[1770766908146,2.98704275,82.81,82.76,2.98704275]
[1770766908352,2.98704275,82.78,82.753,4.29013928]
[1770766911251,2.98704275,82.77,82.729,10.8848]
[1770766911457,2.98704275,82.77,82.727,4.35003182]
[1770766911458,2.98704275,82.76,82.727,4.35003182]
[1770766913256,13.86384275,82.79,82.732,4.36617492]
[1770766913457,2.98704275,82.79,82.741,4.36617492]
[1770766914658,2.98704275,82.79,82.714,96.4]
[1770766914659,2.98704275,82.8,82.751,4.36617492]
[1770766914856,2.98704275,82.82,82.761,4.36617492]
[1770766915051,2.98704275,82.82,82.771,4.28492994]
[1770766915254,2.98704275,82.82,82.781,4.28492994]
[1770766915452,2.98704275,82.83,82.781,4.28492994]
[1770766915657,2.98704275,82.84,82.781,4.28492994]
[1770766916062,2.9872453,82.84,82.781,4.28492994]
[1770766916962,2.9872453,82.84,82.791,4.28492994]
[1770766917551,2.9872453,82.84,82.793,10.8764]
[1770766917752,2.9872453,82.84,82.794,4.27541121]
[1770766918858,2.9872453,82.84,82.78,2.9872453]
[1770766918859,2.9872453,82.84,82.796,4.27541121]
[1770766922262,2.9872453,82.84,82.795,10.8761]
[1770766922263,2.9872453,82.84,82.798,4.26955795]
[1770766923760,2.9872453,82.84,82.8,4.26938247]
[1770766928566,2.9872453,82.83,82.781,4.27130282]
[1770766928767,2.9872453,82.82,82.784,10.8776]
[1770766931373,2.9872453,82.82,82.781,4.27130282]
[1770766931569,2.9872453,82.81,82.781,4.27130282]
[1770766933770,10.8745,82.808,82.781,4.27130282]
[1770766934064,2.9872453,82.79,82.733,4.35759854]
[1770766934264,2.9872453,82.77,82.733,4.35759854]
[1770766934573,2.9872453,82.78,82.733,4.35759854]
[1770766934779,2.9872453,82.79,82.745,4.35759854]
[1770766935676,2.9872453,82.79,82.747,10.8823]
[1770766935873,2.9872453,82.79,82.748,4.36284481]
[1770766936977,10.8771,82.788,82.748,4.36284481]
[1770766937766,2.9872453,82.78,82.748,4.36284481]
[1770766941676,10.8771,82.788,82.751,4.20556018]
[1770766941978,10.8761,82.796,82.751,4.20556018]
[1770766942682,2.9872453,82.79,82.751,4.20556018]
[1770766944686,2.9872453,82.79,82.753,4.19266432]
[1770766944878,8.70328093,82.814,82.753,4.19266432]
[1770766944879,2.9872453,82.8,82.753,4.19266432]